Cogmind - Beta 12 @@@ ROGUE MODE // 2023.03.08 @ 18:14:38 Player: ExAliquo Result: Destroyed by as-65291 with Assembled Heavy Rifle Performance ------------- Evolutions (0) 0 Regions Visited (2) 400 Robots Destroyed (4) 20 Value Destroyed (90) 90 Prototype IDs (0) 0 Alien Tech Used (0) 0 Bonus (0) 0 TOTAL SCORE: 510 Bonus ------- None Cogmind --------- Core Integrity 0/250 Matter 176/300 Energy 100/100 System Corruption 5% Temperature Cool (0) Movement Core (350) Ox6 Location -10/Mines Parts ------- > --- POWER (1) -------- (None) > --- PROPULSION (2) --- (None) > --- UTILITY (2) ------ Large Storage Unit Terrain Scanner > --- WEAPON (2) ------- (None) > --- INVENTORY (15) --- Compact Wheel Peak State ------------ > --- POWER ------------ Ion Engine > --- PROPULSION ------- Light Treads Wheel > --- UTILITY ---------- Small Storage Unit Medium Storage Unit > --- WEAPON ----------- Assault Rifle Light Assault Rifle > --- INVENTORY -------- Light Ion Engine Light Treads Aluminum Leg Aluminum Leg Compact Wheel Assault Rifle [Rating: 7] Favorites ----------- Power Ion Engine Engine Ion Engine Propulsion Light Treads Treads Light Treads Leg Aluminum Leg Wheel Wheel Utility Large Storage Unit Device Heat Sink Storage Large Storage Unit Processor Signal Interpreter Weapon Assault Rifle Ballistic Gun Assault Rifle Build | -11 -10 -10 ------- Run | Jun Mat Min Slots Evolved . | . . . Power . | . . . Propulsion . | . . . Utility . | . . . Weapon . | . . . Parts Attached 16 | . 6 10 Power 2 | . . 2 Engine 2 | . . 2 Core . | . . . Reactor . | . . . Propulsion 5 | . 2 3 Treads 2 | . 1 1 Leg 2 | . . 2 Wheel 1 | . 1 . Hover . | . . . Flight . | . . . Utility 6 | . 4 2 Device 3 | . 1 2 Storage 2 | . 2 . Processor 1 | . 1 . Hackware . | . . . Protection . | . . . Artifact . | . . . Weapon 3 | . . 3 Energy Gun . | . . . Energy Cannon . | . . . Ballistic Gun 3 | . . 3 Ballistic Cannon . | . . . Launcher . | . . . Special Weapon . | . . . Impact Weapon . | . . . Slashing Weapon . | . . . Piercing Weapon . | . . . Special Melee Weapon . | . . . Unidentified Prototypes . | . . . Parts Lost 15 | . . 15 Power 3 | . . 3 Propulsion 5 | . . 5 Utility 2 | . . 2 Weapon 5 | . . 5 Highest Loss Streak 9 | . . 9 To Critical Strikes . | . . . Average Slot Usage (%) 81 | . 92 71 Engine 10 | . 14 7 Treads 11 | . 13 8 Leg 7 | . 1 12 Wheel 8 | . 13 4 Device 4 | . . 8 Storage 14 | . 14 14 Processor 4 | . 6 1 Ballistic Gun 20 | . 28 13 Naked Turns . | . . . Heaviest Build 29 | 13 29 28 Greatest Support 20 | 20 20 20 Greatest Overweight (x) 7 | . 2 7 Average Overweight (x) 1 | . 1 1 Largest Inventory Capacity 15 | 8 15 15 Average Capacity 13 | 8 13 15 Most Carried 8 | 6 8 7 Average Carried 5 | 6 6 3 Final Capacity 15 | 8 15 15 Final Carried 7 | 6 7 1 Class Distribution -------------------- 100% | Mutant Dominant Class ---------------- Mutant | -10/Materials Mutant | -10/Mines Resources | -11 -10 -10 ----------- Run | Jun Mat Min Matter Collected 373 | 216 74 83 Remotely . | . . . Salvage Created 266 | 86 97 83 Parts 10 | 2 8 . Haulers Intercepted . | . . . Recyclers Shooed . | . . . Parts Field Recycled . | . . . Retrieved Matter . | . . . Parts Self-Destructed . | . . . Prevented . | . . . Kills | -11 -10 -10 ------- Run | Jun Mat Min Combat Hostiles Destroyed 8 | . 2 6 Guns 8 | . 2 6 Classes Destroyed 4 | 1 2 1 Recycler 1 | 1 . . Watcher 1 | . 1 . Grunt 2 | . 2 . Assembled 6 | . . 6 Best Kill Streak 3 | 1 3 3 Combat Bots Only 3 | . 2 3 Max Kills in Single Turn 1 | 1 1 1 Gunslinging . | . . . Exploded . | . . . Melee . | . . . Uniques/NPCs Destroyed . | . . . Combat | -11 -10 -10 -------- Run | Jun Mat Min Damage Taken 1452 | . 55 1397 Core 255 | . . 255 Absorbed by Shields . | . . . Core Remaining (%) 100 | 100 . . Volleys Fired 64 | 4 6 54 Largest 2 | 2 2 2 Hottest 40 | 40 40 40 Shots Fired 80 | 8 12 60 Gun 80 | 8 12 60 Cannon . | . . . Launcher . | . . . Special . | . . . Kinetic 80 | 8 12 60 Thermal . | . . . Explosive . | . . . Electromagnetic . | . . . Robot Hit Streak 14 | 3 8 14 Robot Miss Streak 4 | 2 1 4 Penetration Max . | . . . Secondary Targets 1 | . . 1 Max Gunslinging Chain 1 | . . 1 Shots Hit Robots 55 | 5 10 40 Core Hits 23 | 3 6 14 Critical Kills . | . . . Critical Parts Destroyed 2 | . . 2 Critical Strikes 2 | . . 2 Destroy 2 | . . 2 Melee Attacks . | . . . Impact . | . . . Slashing . | . . . Piercing . | . . . Sneak Attacks . | . . . Combat Hostiles . | . . . Follow-up Attacks . | . . . Damage Inflicted 632 | 41 97 494 Guns 632 | 41 97 494 Cannons . | . . . Explosions . | . . . Melee . | . . . Ramming . | . . . Kinetic 632 | 41 97 494 Thermal . | . . . Explosive . | . . . Electromagnetic . | . . . Impact . | . . . Slashing . | . . . Piercing . | . . . Highest Corruption 5 | . . 5 Average Corruption 4 | . . 4 Corruption Purged . | . . . Corruption Blocked . | . . . Effects 3 | . . 3 Message Errors 1 | . . 1 Heat Flow Errors 1 | . . 1 Data Loss (major) 1 | . . 1 Overload Shots . | . . . Overflow Damage . | . . . Projectiles . | . . . Explosions . | . . . Melee . | . . . Knockbacks . | . . . Impact . | . . . Kinetic . | . . . Secondary . | . . . Self-Inflicted Damage . | . . . Shots . | . . . Rammed . | . . . Targets Rammed . | . . . Kicked . | . . . Crushed . | . . . Highest Temperature 154 | . 6 154 Average Temperature 54 | . 6 78 Received Heat Transfer 190 | . 30 160 Siege Activations . | . . . Robots Corrupted . | . . . Combat Hostiles . | . . . Parts Fried . | . . . Impact Corruptions . | . . . Robots Melted . | . . . Combat Hostiles . | . . . Parts Melted . | . . . Heat Transferred . | . . . Parts Sabotaged . | . . . Parts Stolen . | . . . Parts Stripped . | . . . Power Chain Reactions . | . . . Missiles Intercepted . | . . . Alert | -11 -10 -10 ------- Run | Jun Mat Min Peak Influence 101 | 5 101 54 Initial 39 | . 3 39 Average 28 | 2 52 9 Maximum Alert Level . | . . . Low Security (%) 100 | 100 100 100 Level 1 . | . . . Level 2 . | . . . Level 3 . | . . . Level 4 . | . . . Level 5 . | . . . High Security . | . . . Max Security . | . . . Squads Dispatched 1 | . 1 . Investigation 1 | . 1 . Extermination . | . . . Reinforcement . | . . . Assault . | . . . Garrison . | . . . Intercept . | . . . Searches Triggered . | . . . Construction Impeded . | . . . Haulers Reinforced . | . . . Active Scanning Responses . | . . . Cargo Convoy Interrupts . | . . . Stealth | -11 -10 -10 --------- Run | Jun Mat Min Distress Signals . | . . . Communications Jammed . | . . . Distress Signals . | . . . Times Spotted 20 | . 3 17 Peak Tracking Total 13 | . 2 13 Tactical Retreats 4 | . . 4 Traps | -11 -10 -10 ------- Run | Jun Mat Min Traps Triggered . | . . . Indirectly . | . . . Trap Hack Attempts . | . . . Triggered . | . . . Disarmed . | . . . Reprogrammed . | . . . Reused . | . . . Traps Extracted . | . . . Installed . | . . . Triggered . | . . . Machines | -11 -10 -10 ---------- Run | Jun Mat Min Machines Disabled . | . . . Max in Single Turn . | . . . Machines Repaired . | . . . Machines Sabotaged . | . . . Overloaded Fab Kills . | . . . Hacking | -11 -10 -10 --------- Run | Jun Mat Min Machines Accessed 4 | . 4 . Terminals 4 | . 4 . Fabricators . | . . . Repair Stations . | . . . Recycling Units . | . . . Scanalyzers . | . . . Garrison Access . | . . . Total Hacks 13 | . 13 . Successful 8 | . 8 . Failed 5 | . 5 . Catastrophic 1 | . 1 . Database Lockouts . | . . . Manual 5 | . 5 . Terminals 13 | . 13 . Fabricators . | . . . Repair Stations . | . . . Recycling Units . | . . . Scanalyzers . | . . . Garrison Access . | . . . Terminal Hacks 5 | . 5 . Robot Analysis 1 | . 1 . Branch Access Points 1 | . 1 . Terminal Index 1 | . 1 . Locate Traps 1 | . 1 . Registered Components 1 | . 1 . Fabricator Hacks . | . . . Repair Station Hacks . | . . . Recycling Unit Hacks . | . . . Scanalyzer . | . . . Garrison Access Hacks . | . . . Unauthorized Hacks 3 | . 3 . Terminals 3 | . 3 . Botnet 3 | . 3 . Fabricators . | . . . Repair Stations . | . . . Recycling Units . | . . . Scanalyzers . | . . . Garrison Access . | . . . Data Cores Recovered . | . . . Used . | . . . Hacking Detections 4 | . 4 . Full Trace Events 2 | . 2 . Feedback Events . | . . . Feedback Blocked . | . . . Robot Schematics Acquired . | . . . Robots Built . | . . . Authchips . | . . . Time . | . . . Total Robot Build Rating . | . . . Part Schematics Acquired . | . . . Parts Built . | . . . Authchips . | . . . Time . | . . . Total Part Build Rating . | . . . Parts Repaired . | . . . Time . | . . . Parts Recycled . | . . . Recycled Matter . | . . . Retrieved Matter . | . . . Retrieved Components . | . . . Parts Scanalyzed . | . . . Part Schematics Acquired . | . . . Parts Damaged . | . . . Bothacking | -11 -10 -10 ------------ Run | Jun Mat Min Used RIF Installer . | . . . Robots Hacked . | . . . Non-combat . | . . . Combat . | . . . Robot Hacks Applied . | . . . Relay Couplers Released . | . . . Fabnet Peak Effective % . | . . . Robots Rewired . | . . . Allies Hacked . | . . . Hacks Repelled . | . . . Allies | -11 -10 -10 -------- Run | Jun Mat Min Total Allies . | . . . Largest Group . | . . . Highest-Rated Group . | . . . Highest-Rated Ally . | . . . Total Orders . | . . . Ally Attacks . | . . . Total Damage . | . . . Kills . | . . . Allies Corrupted . | . . . Allies Melted . | . . . Intel | -11 -10 -10 ------- Run | Jun Mat Min Robot Analysis Total 1 | . 1 . Derelict Logs Recovered . | . . . Drone Launches . | . . . Drone Recoveries . | . . . Exploration | -11 -10 -10 ------------- Run | Jun Mat Min Turns Passed 453 | 31 203 219 Spaces Moved 218 | 15 152 51 Core 3 | . . 3 Treads 6 | . . 6 Legs 45 | 15 10 20 Wheels 164 | . 142 22 Hover . | . . . Flight . | . . . Fastest Speed 95 | 120 95 110 Average Speed 124 | 120 108 174 Slowest Speed 400 | 120 120 400 Overloaded Moves . | . . . Propulsion Burnouts . | . . . Robots Hopped . | . . . Cave-ins Triggered . | . . . Exploration Rate (%) 15 | 2 33 10 Regions Visited 2 Branch Regions 1 Pre-discovered Areas . | . . . Known Exits Taken 1 | . 1 . Unknown Exits Taken 1 | 1 . . Scrap Searched . | . . . Spaces Dug . | . . . Terrain Destroyed . | . . . Melee . | . . . Projectile . | . . . AOE . | . . . Terrain Rammed . | . . . Walls Destroyed . | . . . Machines Disabled . | . . . Actions | -11 -10 -10 --------- Run | Jun Mat Min Total 322 | 20 181 121 Wait 19 | 2 11 6 Move 216 | 14 151 51 Hop . | . . . Pick Up . | . . . Fast Attach 8 | . 4 4 Attach 8 | . 2 6 Detach 5 | . 5 . Swap . | . . . Drop 2 | . 2 . Fire 64 | 4 6 54 Melee . | . . . Ram . | . . . Kick . | . . . Crush . | . . . Escape Stasis . | . . . Rewire . | . . . Trap . | . . . Miscellaneous . | . . . Route ------- -11/Junkyard -10/Materials (discovered 2 exits: *Min x2) -10/Mines History --------- Turn | Location | Event 1 | -11/Junkyard | Discovered new exit (range 3) 32 | -11/Junkyard | Entered Materials 157 | -10/Materials | Identified exit to Mines 235 | -10/Materials | Entered Mines 236 | -10/Mines | Assembled infested the area 241 | -10/Mines | Assisted by a Guerilla fighting off Assembled 332 | -10/Mines | Lost 6 parts (1p2n1u2w) 334 | -10/Mines | Build established: Mutant 377 | -10/Mines | Core integrity fell below 50% 450 | -10/Mines | Core integrity fell below 20% 454 | -10/Mines | Destroyed by as-65291 with Assembled Heavy Rifle Last Messages --------------- 00373_ as-35055 destroyed. 00374_ Lgt. Treads destroyed. 00378_ as-90259 suffers critical hit (Destroy). 00378_ Destroyed Asb. Heavy Rifle. 00380_ System corrupted: Substantial component data lost. 00388_ Assault Rifle destroyed. 00392_ Acquired 17 matter. 00397_ Acquired 12 matter. 00400_ Lgt. Ion Engine destroyed. 00404_ ZTK5G9MCKJEWA=8VML1METXSCPMAZFAR 00416_ Acquired Lgt. Assault Rifle. 00421_ Lgt. Assault Rifle destroyed. 00426_ Aluminum Leg destroyed. 00427_ Acquired Assault Rifle. 00431_ Heat Sink destroyed. 00433_ Assault Rifle destroyed. 00436_ Acquired Lgt. Ion Engine. 00441_ Acquired Terrain Scanner. 00443_ Aluminum Leg destroyed. 00447_ Lgt. Ion Engine destroyed. Map ----- +----------------------------------------------------+ | | | | | | | | | | | | | | | | | | | | | | | | | | | | | ?????????????????????????????????????????????? | | ?????????????????????????????????????????????? | | ???????????????????###?##????????????????????? | | ??????????????????? ? #????????????????????? | | ???????????????????#*## #????????#???????????? | | ???????????????????#%## #????????????????????? | | ???????????????????#=## #???????#####????????? | | ???????????????????#%!= ##### ???????? | | ??????????????######=! $#??????????????? | | ??????????????# #### #??????????????? | | ??????????????# a a##???????????????????? | | ??????????????# ## @ ##????????????????????? | | ?????????###### ### #?????????????????????? | | ?????????# #?## ##?????????????????????? | | ?????????# ######??## #??????????????????????? | | ?????????# #????????#!#??????????????????????? | | ?????????# #????????#%=??????????????????????? | | ?????????# #????????!*# ???#?????????????????? | | ????????? #?#??????#%*##????????????????????? | | ????????? ????????%%=??????????????????????? | | ???????? ##??????### ####???????????????????? | | ???????? #????????# #???????????????????? | | ??????? ?????????# % #???????????????????? | | ??????? ?????????# % #???????????????????? | | ??????# ?????????# #???????????????????? | | ??????# ??????????# = * #???????????????????? | | ??????##??????????# * %"#???????????????????? | | ??????????????????# " #???????????????????? | | ??????????????????##### ##???????????????????? | | ??????????????????????? #????????????????????? | | ??????????????????????? #????????????????????? | | ????????????????????????#????????????????????? | | ?????????????????????????????????????????????? | | ?????????????????????????????????????????????? | | ?????????????????????????????????????????????? | | ?????????????????????????????????????????????? | +----------------------------------------------------+ Best States ------------- Heat Dissipation 35 Energy Generation 10 Energy Capacity 250 Matter Stores 300 Matter Capacity 300 Sight Range 16 Terrain Scan Range 14 Terrain Scan Density 10 Evasion (%) 55 Recoil Reduction 1 Item Schematics ----------------- None Robot Schematics ------------------ None Fabricated ------------ Nothing Alien Tech Used ----------------- None Achievements -------------- None Challenges ------------ None Game ------ Seed BackupHeatMicroactuators Manual? 0 Play Time 00:06:36 Cumulative 41.5 hours Start 2023.03.08 @ 18:05:45 End 2023.03.08 @ 18:14:38 Sessions 1 Manual Loads 0 Difficulty Rogue Special Mode None Game No. 77 Rogue 77 Adventurer 0 Explorer 0 Win Type - Total 0 Types 0/0/0/0/0/0/0/0/0 Lore% 55 Gallery% 53 Achievement% 58 Wizard Run 0 Options --------- ASCII 0 Keyboard 1 Movement Numpad Keybinds 0 Fullscreen 1 Font 18/SmallcapsGlow Map View 76x50 Tactical HUD 1 Map Filters NONE Filters NONE Steam 1 RUN: 41717b49-bc43-4f01-8541-7621e91f2238